fUSD/lending_fUSD_20260529
["ID","MTS","AMOUNT","RATE_DAILY","PERIOD"]
[423293311,1780037438000,-2041.44350403,0.00013164,2]
[423293312,1780037438000,-9259.58546887,0.00013164,2]
[423293314,1780037438000,-49480.63,0.00013164,2]
[423293316,1780037438000,-933550.152686,0.00013164,2]
[423293315,1780037438000,-12097.29598902,0.00013164,2]
[423293345,1780037438000,-150.0,0.00013737,2]
[423293318,1780037438000,-69153.54784147,0.00013264,2]
[423293320,1780037438000,-992.0,0.00013457,2]
[423293322,1780037438000,-1108.62641723,0.00013457,2]
[423293321,1780037438000,-1454.0,0.00013457,2]
[423293323,1780037438000,-842.0,0.00013484,2]
[423293319,1780037438000,-175.0,0.00013457,2]
[423293324,1780037438000,-500.0,0.00013488,2]
[423293325,1780037438000,-150.0,0.00013488,2]
[423293327,1780037438000,-150.0,0.00013488,2]
[423293326,1780037438000,-150.0,0.00013488,2]
[423293346,1780037438000,-1110.0,0.00013738,2]
[423293317,1780037438000,-1000.0,0.00013263,2]
[423293349,1780037438000,-411.0,0.00013766,2]
[423293375,1780037438000,-156.81,0.00014065,2]
[423293372,1780037438000,-504.14146936,0.00014036,2]
[423293374,1780037438000,-150.0,0.00014064,2]
[423293380,1780037438000,-150.0,0.0001413,2]
[423293383,1780037438000,-500.0,0.00014178,2]
[423293378,1780037438000,-150.0,0.00014087,2]
[423293381,1780037438000,-150.0,0.0001413,2]
[423293379,1780037438000,-150.0,0.00014122,2]
[423293382,1780037438000,-2678.81237614,0.00014177,2]
[423293386,1780037438000,-150.0,0.00014179,2]
[423293384,1780037438000,-500.0,0.00014178,2]
[423293387,1780037438000,-249.06492483,0.0001422,2]
[423293389,1780037438000,-150.0,0.00014237,2]
[423293390,1780037438000,-150.0,0.00014237,2]
[423293347,1780037438000,-2678.81237614,0.00013744,2]
[423293370,1780037438000,-2678.81237614,0.00014033,2]
[423293368,1780037438000,-150.0,0.00014006,2]
[423293391,1780037438000,-150.0,0.00014237,2]
[423293363,1780037438000,-150.0,0.00013987,2]
[423293366,1780037438000,-2710.77076189,0.00014003,2]
[423293352,1780037438000,-150.0,0.00013787,2]
[423293350,1780037438000,-368.14591407,0.00013773,7]
[423293351,1780037438000,-150.0,0.00013776,2]
[423293355,1780037438000,-150.0,0.00013862,2]
[423293354,1780037438000,-150.0,0.00013834,2]
[423293353,1780037438000,-1804.0,0.00013793,2]
[423293348,1780037438000,-500.0,0.00013762,2]
[423293357,1780037438000,-150.0,0.00013891,2]
[423293356,1780037438000,-2678.81237614,0.00013888,2]
[423293359,1780037438000,-150.0,0.00013916,2]
[423293361,1780037438000,-1680.0,0.00013919,2]
[423293364,1780037438000,-11843.34109826,0.0001399,2]
[423293360,1780037438000,-150.0,0.00013916,2]
[423293358,1780037438000,-796.0,0.00013904,2]
[423293362,1780037438000,-150.0,0.00013949,2]
[423293435,1780037439000,-150.0,0.0001464,2]
[423293434,1780037439000,-4268.64218443,0.00014634,2]
[423293432,1780037439000,-2678.81237614,0.00014611,2]
[423293433,1780037439000,-150.0,0.00014612,2]
[423293430,1780037439000,-1900.0,0.000146,5]
[423293420,1780037439000,-529.19931579,0.00014499,2]
[423293425,1780037439000,-150.0,0.00014525,2]
[423293422,1780037439000,-502.6201193,0.00014499,2]
[423293424,1780037439000,-1400.0,0.000145,5]
[423293436,1780037439000,-4268.64218443,0.00014679,2]
[423293419,1780037439000,-500.0,0.00014499,2]
[423293427,1780037439000,-150.0,0.00014558,2]
[423293441,1780037439000,-500.0,0.0001469,2]
[423293447,1780037439000,-4268.64218443,0.00014723,2]
[423293431,1780037439000,-404.226028,0.00014602,2]
[423293440,1780037439000,-500.0,0.0001469,2]
[423293439,1780037439000,-500.0,0.0001469,2]
[423293443,1780037439000,-849.13,0.0001469,2]
[423293442,1780037439000,-500.0,0.0001469,2]
[423293448,1780037439000,-500.0,0.00014726,2]
[423293445,1780037439000,-150.0,0.00014698,2]
[423293446,1780037439000,-2400.0,0.000147,5]
[423293444,1780037439000,-500.0,0.0001469,2]
[423293450,1780037439000,-150.0,0.00014737,2]
[423293451,1780037439000,-25000.0,0.00014742,3]
[423293449,1780037439000,-25000.0,0.00014733,3]
[423293418,1780037439000,-849.13,0.00014499,2]
[423293437,1780037439000,-150.0,0.00014687,2]
[423293417,1780037439000,-500.0,0.00014499,2]
[423293404,1780037439000,-2678.81237614,0.00014466,2]
[423293429,1780037439000,-150.0,0.00014583,2]
[423293392,1780037439000,-150.0,0.00014237,2]
[423293394,1780037439000,-400.0,0.000143,5]
[423293393,1780037439000,-150.0,0.00014295,2]
[423293395,1780037439000,-2678.81237614,0.00014322,2]
[423293397,1780037439000,-150.0,0.00014344,2]
[423293396,1780037439000,-150.0,0.00014344,2]
[423293398,1780037439000,-150.0,0.00014352,2]
[423293402,1780037439000,-150.0,0.0001441,2]
[423293401,1780037439000,-900.0,0.000144,5]
[423293399,1780037439000,-11503.92810633,0.00014359,2]
[423293400,1780037439000,-150.0,0.00014387,2]
[423293403,1780037439000,-1257.16904899,0.00014462,2]
[423293453,1780037439000,-2678.81237614,0.00014755,2]
[423293421,1780037439000,-500.0,0.00014499,2]
[423293408,1780037439000,-7435.16,0.00014497,2]
[423293407,1780037439000,-415.9809058,0.00014496,2]
[423293405,1780037439000,-150.0,0.00014468,2]
[423293406,1780037439000,-150.0,0.00014487,2]
[423293409,1780037439000,-1517.28,0.00014497,2]
[423293413,1780037439000,-500.0,0.00014499,2]
[423293415,1780037439000,-500.0,0.00014499,2]
[423293412,1780037439000,-500.0,0.00014499,2]
[423293411,1780037439000,-500.77,0.00014497,2]
[423293414,1780037439000,-500.0,0.00014499,2]
[423293416,1780037439000,-500.0,0.00014499,2]
[423293423,1780037439000,-509.61126299,0.00014499,2]
[423293428,1780037439000,-156.81,0.00014567,2]
[423293426,1780037439000,-150.0,0.00014558,2]
[423293410,1780037439000,-5614.84,0.00014497,2]
[423293452,1780037439000,-25000.0,0.0001475,3]
[423293438,1780037439000,-500.0,0.0001469,2]
[423293456,1780037439000,-500.0,0.00014767,2]
[423293488,1780037439000,-500.0,0.00014789,2]
[423293486,1780037439000,-25000.0,0.00014786,3]
[423293490,1780037439000,-25000.0,0.00014794,3]
[423293491,1780037439000,-500.0,0.00014799,2]
[423293492,1780037439000,-782.9,0.00014799,2]
[423293493,1780037439000,-659.0,0.00014799,2]
[423293496,1780037439000,-500.0,0.00014799,2]
[423293494,1780037439000,-616.35,0.00014799,2]
[423293495,1780037439000,-500.0,0.00014799,2]
[423293498,1780037439000,-25000.0,0.00014803,3]
[423293497,1780037439000,-400.0,0.000148,5]
[423293500,1780037439000,-25000.0,0.00014812,3]
[423293499,1780037439000,-4268.64218443,0.00014811,2]
[423293489,1780037439000,-500.0,0.00014789,2]
[423293502,1780037439000,-25000.0,0.00014821,3]
[423293504,1780037439000,-15000.0,0.00014829,2]
[423293506,1780037439000,-25000.0,0.00014838,3]
[423293505,1780037439000,-25000.0,0.0001483,3]
[423293507,1780037439000,-25000.0,0.00014847,3]
[423293508,1780037439000,-504.58739331,0.0001485,2]
[423293509,1780037439000,-1476.77478,0.0001485,2]
[423293510,1780037439000,-1476.77478,0.0001485,2]
[423293511,1780037439000,-1476.77478,0.0001485,2]
[423293514,1780037439000,-4268.64218443,0.00014856,2]
[423293513,1780037439000,-3467.84389084,0.00014856,2]
[423293515,1780037439000,-25000.0,0.00014856,3]
[423293455,1780037439000,-25000.0,0.00014759,3]
[423293517,1780037439000,-500.0,0.00014856,10]
[423293501,1780037439000,-150.0,0.00014813,2]
[423293487,1780037439000,-10000.0,0.00014787,2]
[423293516,1780037439000,-500.0,0.00014856,10]
[423293485,1780037439000,-295.01071669,0.00014783,2]
[423293454,1780037439000,-150.0,0.00014756,2]
[423293483,1780037439000,-500.0,0.00014783,2]
[423293460,1780037439000,-191.47687019,0.00014771,2]
[423293459,1780037439000,-150.0,0.00014771,2]
[423293458,1780037439000,-25000.0,0.00014768,3]
[423293464,1780037439000,-500.0,0.00014783,2]
[423293461,1780037439000,-150.0,0.00014772,2]
[423293462,1780037439000,-150.0,0.00014772,2]
[423293463,1780037439000,-25000.0,0.00014777,3]
[423293466,1780037439000,-500.0,0.00014783,2]
[423293465,1780037439000,-500.0,0.00014783,2]
[423293467,1780037439000,-500.0,0.00014783,2]
[423293469,1780037439000,-500.0,0.00014783,2]
[423293468,1780037439000,-500.0,0.00014783,2]
[423293457,1780037439000,-4268.64218443,0.00014767,2]
[423293473,1780037439000,-500.0,0.00014783,2]
[423293484,1780037439000,-500.0,0.00014783,2]
[423293471,1780037439000,-500.0,0.00014783,2]
[423293482,1780037439000,-500.0,0.00014783,2]
[423293479,1780037439000,-500.0,0.00014783,2]
[423293480,1780037439000,-500.0,0.00014783,2]
[423293478,1780037439000,-500.0,0.00014783,2]
[423293477,1780037439000,-500.0,0.00014783,2]
[423293476,1780037439000,-500.0,0.00014783,2]
[423293475,1780037439000,-500.0,0.00014783,2]
[423293481,1780037439000,-500.0,0.00014783,2]
[423293470,1780037439000,-500.0,0.00014783,2]
[423293472,1780037439000,-500.0,0.00014783,2]
[423293474,1780037439000,-500.0,0.00014783,2]
[423293558,1780037440000,-150.0,0.00014986,2]
[423293557,1780037440000,-187.21,0.00014985,2]
[423293560,1780037440000,-163.2636897,0.00014986,2]
[423293555,1780037440000,-849.13,0.00014984,2]
[423293551,1780037440000,-500.0,0.00014984,4]
[423293553,1780037440000,-500.0,0.00014984,2]
[423293554,1780037440000,-500.0,0.00014984,2]
[423293552,1780037440000,-500.0,0.00014984,2]
[423293562,1780037440000,-262.47046688,0.00014986,2]
[423293549,1780037440000,-500.0,0.00014984,2]
[423293556,1780037440000,-500.0,0.00014984,2]
[423293559,1780037440000,-150.0,0.00014986,2]
[423293567,1780037440000,-151.0,0.00014997,2]
[423293563,1780037440000,-150.0,0.00014986,2]
[423293565,1780037440000,-218.26213481,0.00014986,2]
[423293564,1780037440000,-194.88830757,0.00014986,2]
[423293566,1780037440000,-151.0,0.00014997,2]
[423293568,1780037440000,-208.993,0.00014997,2]
[423293570,1780037440000,-500.0,0.00014998,2]
[423293576,1780037440000,-659.0,0.00014998,2]
[423293574,1780037440000,-500.0,0.00014998,2]
[423293575,1780037440000,-782.9,0.00014998,2]
[423293569,1780037440000,-3799.806,0.00014997,2]
[423293573,1780037440000,-500.0,0.00014998,2]
[423293550,1780037440000,-500.0,0.00014984,3]
[423293572,1780037440000,-220.86,0.00014998,2]
[423293561,1780037440000,-150.0,0.00014986,2]
[423293546,1780037440000,-343.0,0.00014959,2]
[423293535,1780037440000,-10000.0,0.000149,2]
[423293547,1780037440000,-500.0,0.00014984,2]
[423293571,1780037440000,-500.0,0.00014998,2]
[423293518,1780037440000,-500.0,0.00014856,10]
[423293520,1780037440000,-185.20326433,0.00014856,10]
[423293525,1780037440000,-3467.84389084,0.00014878,2]
[423293523,1780037440000,-150.0,0.00014871,2]
[423293522,1780037440000,-3467.84389084,0.00014867,2]
[423293519,1780037440000,-500.0,0.00014856,10]
[423293524,1780037440000,-25000.0,0.00014874,3]
[423293521,1780037440000,-25000.0,0.00014865,3]
[423293527,1780037440000,-163.0,0.0001488,2]
[423293528,1780037440000,-25000.0,0.00014882,3]
[423293526,1780037440000,-308.0,0.0001488,2]
[423293530,1780037440000,-25000.0,0.00014891,3]
[423293531,1780037440000,-500.0,0.000149,2]
[423293529,1780037440000,-3467.84389084,0.00014889,2]
[423293533,1780037440000,-25000.0,0.000149,3]
[423293532,1780037440000,-500.0,0.000149,2]
[423293534,1780037440000,-5000.0,0.000149,2]
[423293537,1780037440000,-3467.84389084,0.000149,2]
[423293536,1780037440000,-965.65186372,0.000149,2]
[423293538,1780037440000,-2678.81237614,0.000149,2]
[423293539,1780037440000,-400.0,0.000149,5]
[423293542,1780037440000,-423.03065116,0.000149,2]
[423293540,1780037440000,-4268.64218443,0.000149,2]
[423293543,1780037440000,-485.78955058,0.000149,2]
[423293545,1780037440000,-3442.49838497,0.00014946,2]
[423293544,1780037440000,-150.0,0.00014929,2]
[423293548,1780037440000,-500.0,0.00014984,2]
[423293578,1780037440000,-500.0,0.00014998,2]
[423293541,1780037440000,-5268.15610031,0.000149,2]
[423293577,1780037440000,-616.35,0.00014998,2]
[423293608,1780037440000,-500.0,0.00014999,2]
[423293613,1780037440000,-500.0,0.00014999,2]
[423293612,1780037440000,-3651.0,0.00014999,2]
[423293614,1780037440000,-500.0,0.00014999,2]
[423293615,1780037440000,-500.0,0.00014999,2]
[423293618,1780037440000,-500.0,0.00014999,2]
[423293616,1780037440000,-500.0,0.00014999,2]
[423293619,1780037440000,-500.0,0.00014999,2]
[423293624,1780037440000,-500.0,0.00014999,2]
[423293621,1780037440000,-512.27479317,0.00014999,2]
[423293617,1780037440000,-500.0,0.00014999,2]
[423293623,1780037440000,-500.0,0.00014999,2]
[423293627,1780037440000,-479.18442925,0.00014999,2]
[423293628,1780037440000,-500.0,0.00014999,2]
[423293629,1780037440000,-500.0,0.00014999,2]
[423293625,1780037440000,-500.0,0.00014999,2]
[423293631,1780037440000,-500.0,0.00014999,2]
[423293630,1780037440000,-500.0,0.00014999,2]
[423293632,1780037440000,-500.0,0.00014999,2]
[423293636,1780037440000,-517.97558109,0.00014999,2]
[423293634,1780037440000,-500.0,0.00014999,2]
[423293635,1780037440000,-500.0,0.00014999,2]
[423293633,1780037440000,-500.0,0.00014999,2]
[423293638,1780037440000,-849.13,0.00014999,2]
[423293639,1780037440000,-849.13,0.00014999,2]
[423293637,1780037440000,-849.13,0.00014999,2]
[423293579,1780037440000,-542.14498926,0.00014999,2]
[423293605,1780037440000,-500.0,0.00014999,2]
[423293607,1780037440000,-497.79780456,0.00014999,2]
[423293626,1780037440000,-500.0,0.00014999,2]
[423293609,1780037440000,-500.0,0.00014999,2]
[423293581,1780037440000,-1089.96619432,0.00014999,5]
[423293611,1780037440000,-500.0,0.00014999,2]
[423293580,1780037440000,-1089.96619433,0.00014999,5]
[423293582,1780037440000,-500.0,0.00014999,2]
[423293583,1780037440000,-500.0,0.00014999,2]
[423293584,1780037440000,-500.0,0.00014999,2]
[423293587,1780037440000,-500.0,0.00014999,2]
[423293585,1780037440000,-500.0,0.00014999,2]
[423293588,1780037440000,-500.0,0.00014999,2]
[423293589,1780037440000,-500.0,0.00014999,2]
[423293591,1780037440000,-500.0,0.00014999,2]
[423293590,1780037440000,-500.0,0.00014999,2]
[423293592,1780037440000,-500.0,0.00014999,2]
[423293593,1780037440000,-500.0,0.00014999,2]
[423293586,1780037440000,-500.0,0.00014999,2]
[423293606,1780037440000,-500.0,0.00014999,2]
[423293596,1780037440000,-1092.26222106,0.00014999,5]
[423293604,1780037440000,-500.0,0.00014999,2]
[423293603,1780037440000,-500.0,0.00014999,2]
[423293601,1780037440000,-500.0,0.00014999,2]
[423293600,1780037440000,-602.12691317,0.00014999,6]
[423293602,1780037440000,-500.0,0.00014999,2]
[423293595,1780037440000,-377.70945128,0.00014999,2]
[423293598,1780037440000,-500.0,0.00014999,2]
[423293597,1780037440000,-500.0,0.00014999,2]
[423293599,1780037440000,-500.0,0.00014999,5]
[423293594,1780037440000,-500.0,0.00014999,2]
[423293610,1780037440000,-500.0,0.00014999,2]
[423293683,1780037441000,-500.0,0.00014999,2]
[423293685,1780037441000,-500.0,0.00014999,2]
[423293684,1780037441000,-500.0,0.00014999,2]
[423293686,1780037441000,-234.32677457,0.00014999,2]
[423293682,1780037441000,-500.0,0.00014999,2]
[423293674,1780037441000,-500.0,0.00014999,2]
[423293681,1780037441000,-500.0,0.00014999,2]
[423293677,1780037441000,-500.0,0.00014999,2]
[423293676,1780037441000,-455.54178649,0.00014999,2]
[423293678,1780037441000,-500.0,0.00014999,2]
[423293687,1780037441000,-500.0,0.00014999,2]
[423293679,1780037441000,-500.0,0.00014999,2]
[423293688,1780037441000,-500.0,0.00014999,2]
[423293704,1780037441000,-782.9,0.00014999,2]
[423293693,1780037441000,-500.0,0.00014999,2]
[423293694,1780037441000,-500.0,0.00014999,2]
[423293691,1780037441000,-500.0,0.00014999,2]
[423293692,1780037441000,-500.0,0.00014999,2]
[423293690,1780037441000,-500.0,0.00014999,2]
[423293696,1780037441000,-500.0,0.00014999,2]
[423293701,1780037441000,-782.9,0.00014999,2]
[423293699,1780037441000,-150.0,0.00014999,2]
[423293698,1780037441000,-514.24822822,0.00014999,2]
[423293697,1780037441000,-453.38631548,0.00014999,2]
[423293695,1780037441000,-500.0,0.00014999,2]
[423293700,1780037441000,-782.9,0.00014999,2]
[423293673,1780037441000,-500.0,0.00014999,2]
[423293689,1780037441000,-500.0,0.00014999,2]
[423293675,1780037441000,-500.0,0.00014999,2]
[423293641,1780037441000,-849.13,0.00014999,2]
[423293672,1780037441000,-500.0,0.00014999,2]
[423293642,1780037441000,-849.13,0.00014999,2]
[423293706,1780037441000,-782.9,0.00014999,2]
[423293640,1780037441000,-849.13,0.00014999,2]
[423293644,1780037441000,-849.13,0.00014999,2]
[423293643,1780037441000,-849.13,0.00014999,2]
[423293648,1780037441000,-849.13,0.00014999,2]
[423293645,1780037441000,-849.13,0.00014999,2]
[423293647,1780037441000,-849.13,0.00014999,2]
[423293646,1780037441000,-849.13,0.00014999,2]
[423293649,1780037441000,-849.13,0.00014999,2]
[423293653,1780037441000,-849.13,0.00014999,2]
[423293651,1780037441000,-849.13,0.00014999,2]
[423293650,1780037441000,-849.13,0.00014999,2]
[423293652,1780037441000,-849.13,0.00014999,2]
[423293654,1780037441000,-849.13,0.00014999,2]
[423293659,1780037441000,-500.0,0.00014999,2]
[423293658,1780037441000,-849.3096255,0.00014999,2]
[423293663,1780037441000,-500.0,0.00014999,2]
[423293662,1780037441000,-500.0,0.00014999,2]
[423293656,1780037441000,-849.13,0.00014999,2]
[423293657,1780037441000,-849.13,0.00014999,2]
[423293661,1780037441000,-500.0,0.00014999,2]
[423293668,1780037441000,-500.0,0.00014999,2]
[423293665,1780037441000,-500.0,0.00014999,2]
[423293667,1780037441000,-500.0,0.00014999,2]
[423293664,1780037441000,-500.0,0.00014999,2]
[423293666,1780037441000,-500.0,0.00014999,2]
[423293671,1780037441000,-249.66568301,0.00014999,2]
[423293670,1780037441000,-500.0,0.00014999,2]
[423293669,1780037441000,-500.0,0.00014999,2]
[423293707,1780037441000,-782.9,0.00014999,2]
[423293680,1780037441000,-500.0,0.00014999,2]
[423293703,1780037441000,-782.9,0.00014999,2]
[423293740,1780037441000,-659.0,0.00014999,2]
[423293742,1780037441000,-659.0,0.00014999,2]
[423293741,1780037441000,-659.0,0.00014999,2]
[423293745,1780037441000,-616.35,0.00014999,2]
[423293743,1780037441000,-659.04863491,0.00014999,2]
[423293744,1780037441000,-616.35,0.00014999,2]
[423293750,1780037441000,-616.35,0.00014999,2]
[423293747,1780037441000,-616.35,0.00014999,2]
[423293702,1780037441000,-782.9,0.00014999,2]
[423293748,1780037441000,-616.35,0.00014999,2]
[423293749,1780037441000,-616.35,0.00014999,2]
[423293751,1780037441000,-616.35,0.00014999,2]
[423293752,1780037441000,-616.35,0.00014999,2]
[423293753,1780037441000,-616.35,0.00014999,2]
[423293755,1780037441000,-616.35,0.00014999,2]
[423293754,1780037441000,-616.35,0.00014999,2]
[423293756,1780037441000,-616.35,0.00014999,2]
[423293757,1780037441000,-616.35,0.00014999,2]
[423293758,1780037441000,-616.35,0.00014999,2]
[423293759,1780037441000,-616.35,0.00014999,2]
[423293760,1780037441000,-616.35,0.00014999,2]
[423293766,1780037441000,-406.0981632,0.00014999,2]
[423293765,1780037441000,-616.55918433,0.00014999,2]
[423293764,1780037441000,-616.35,0.00014999,2]
[423293761,1780037441000,-616.35,0.00014999,2]
[423293762,1780037441000,-616.35,0.00014999,2]
[423293763,1780037441000,-616.35,0.00014999,2]
[423293768,1780037441000,-500.0,0.00014999,2]
[423293767,1780037441000,-500.0,0.00014999,2]
[423293739,1780037441000,-659.0,0.00014999,2]
[423293738,1780037441000,-659.0,0.00014999,2]
[423293746,1780037441000,-616.35,0.00014999,2]
[423293735,1780037441000,-659.0,0.00014999,2]
[423293705,1780037441000,-782.9,0.00014999,2]
[423293709,1780037441000,-782.9,0.00014999,2]
[423293708,1780037441000,-782.9,0.00014999,2]
[423293737,1780037441000,-659.0,0.00014999,2]
[423293714,1780037441000,-782.9,0.00014999,2]
[423293711,1780037441000,-782.9,0.00014999,2]
[423293713,1780037441000,-782.9,0.00014999,2]
[423293710,1780037441000,-782.9,0.00014999,2]
[423293717,1780037441000,-782.9,0.00014999,2]
[423293719,1780037441000,-782.9,0.00014999,2]
[423293715,1780037441000,-782.9,0.00014999,2]
[423293716,1780037441000,-782.9,0.00014999,2]
[423293718,1780037441000,-782.9,0.00014999,2]
[423293721,1780037441000,-782.93424159,0.00014999,2]
[423293712,1780037441000,-782.9,0.00014999,2]
[423293724,1780037441000,-659.0,0.00014999,2]
[423293720,1780037441000,-782.9,0.00014999,2]
[423293733,1780037441000,-659.0,0.00014999,2]
[423293734,1780037441000,-659.0,0.00014999,2]
[423293731,1780037441000,-659.0,0.00014999,2]
[423293728,1780037441000,-659.0,0.00014999,2]
[423293732,1780037441000,-659.0,0.00014999,2]
[423293736,1780037441000,-659.0,0.00014999,2]
[423293729,1780037441000,-659.0,0.00014999,2]
[423293726,1780037441000,-659.0,0.00014999,2]
[423293727,1780037441000,-659.0,0.00014999,2]
[423293725,1780037441000,-659.0,0.00014999,2]
[423293723,1780037441000,-659.0,0.00014999,2]
[423293730,1780037441000,-659.0,0.00014999,2]
[423293722,1780037441000,-659.0,0.00014999,2]
[423293779,1780037442000,-567.49,0.00014999,2]
[423293786,1780037442000,-567.49,0.00014999,2]
[423293783,1780037442000,-567.49,0.00014999,2]
[423293787,1780037442000,-567.49,0.00014999,2]
[423293784,1780037442000,-567.49,0.00014999,2]
[423293785,1780037442000,-567.49,0.00014999,2]
[423293789,1780037442000,-567.49,0.00014999,2]
[423293781,1780037442000,-567.49,0.00014999,2]
[423293788,1780037442000,-567.49,0.00014999,2]
[423293782,1780037442000,-567.49,0.00014999,2]
[423293772,1780037442000,-545.46923841,0.00014999,2]
[423293777,1780037442000,-567.49,0.00014999,2]
[423293776,1780037442000,-567.49,0.00014999,2]
[423293775,1780037442000,-567.49,0.00014999,2]
[423293774,1780037442000,-567.49,0.00014999,2]
[423293778,1780037442000,-567.49,0.00014999,2]
[423293773,1780037442000,-567.49,0.00014999,2]
[423293770,1780037442000,-500.0,0.00014999,2]
[423293769,1780037442000,-500.0,0.00014999,2]
[423293771,1780037442000,-500.0,0.00014999,2]
[423293780,1780037442000,-567.49,0.00014999,2]
[423293790,1780037442000,-567.49,0.00014999,2]
[423293791,1780037442000,-567.49,0.00014999,2]
[423293792,1780037442000,-567.49,0.00014999,2]
[423293809,1780037442000,-666.0,0.00014999,2]
[423293812,1780037442000,-4480.0,0.00015,5]
[423293810,1780037442000,-300.0,0.00014999,2]
[423293811,1780037442000,-4073.0,0.00015,5]
[423293808,1780037442000,-300.0,0.00014999,2]
[423293804,1780037442000,-300.0,0.00014999,2]
[423293807,1780037442000,-300.0,0.00014999,2]
[423293806,1780037442000,-666.0,0.00014999,2]
[423293805,1780037442000,-300.0,0.00014999,2]
[423293813,1780037442000,-4188207.63635159,0.00015,2]
[423293802,1780037442000,-300.0,0.00014999,2]
[423293803,1780037442000,-280.44796258,0.00014999,2]
[423293793,1780037442000,-567.49,0.00014999,2]
[423293794,1780037442000,-567.49,0.00014999,2]
[423293797,1780037442000,-500.0,0.00014999,2]
[423293795,1780037442000,-567.49,0.00014999,2]
[423293796,1780037442000,-567.57387043,0.00014999,2]
[423293800,1780037442000,-300.0,0.00014999,2]
[423293798,1780037442000,-300.0,0.00014999,2]
[423293801,1780037442000,-666.0,0.00014999,2]
[423293799,1780037442000,-666.0,0.00014999,2]
[423293832,1780037445000,-60301.48058891,0.00015,2]
[423293834,1780037445000,-3148.85513317,0.00015,14]
[423293833,1780037445000,-3336191.42068598,0.00015,2]
[423293836,1780037445000,-1000.0,0.00015,2]
[423293838,1780037445000,-1000.0,0.00015,2]
[423293835,1780037445000,-1000.0,0.00015,2]
[423293840,1780037445000,-1000.0,0.00015,2]
[423293839,1780037445000,-1000.0,0.00015,2]
[423293843,1780037445000,-17219.34421083,0.00015,2]
[423293842,1780037445000,-437.93,0.00015,2]
[423293844,1780037445000,-318.77816413,0.00015,2]
[423293845,1780037445000,-697.02887215,0.00015,2]
[423293846,1780037445000,-1123.55601117,0.00015,2]
[423293837,1780037445000,-1000.0,0.00015,2]
[423293841,1780037445000,-1000.0,0.00015,2]
[423293847,1780037446000,-2130.508,0.000149,2]
[423293855,1780037606000,2779.86,0.00028082,120]
[423293859,1780037629000,3495.09634322,0.00028082,120]
[423293862,1780037727000,500.0,0.00028,120]
[423293869,1780037756000,600.0,0.00028,120]
[423293870,1780037778000,1028.83841075,0.0002808,120]
[423293871,1780037883000,1590.20711697,0.0002808,120]
[423293872,1780037901000,155.41,9.042e-05,2]
[423293875,1780037985000,1045.01,0.00027125,120]
[423293874,1780037985000,1045.01,0.00024865,120]
[423293904,1780038421000,1000.0,0.0002808,120]
[423293905,1780038434000,1000.0,0.0002808,120]
[423293906,1780038441000,152.0,0.00027567,120]
[423293913,1780038450000,-16.03250975,0.00011954,2]
[423293912,1780038450000,-266.5998,0.00011853,2]